[Event "*** Titled Tuesday Blitz"]
[Site "Chess.com"]
[Date "2020.04.07"]
[Round "5"]
[White "Mikromurks"]
[Black "letantha"]
[Result "1-0"]
[WhiteElo "2328"]
[BlackElo "2133"]
[TimeControl "180+1"]
[EndTime "13:56:08 PDT"]
[Termination "Mikromurks won on time"]

1. d4 {[%clk 0:03:00.9]} 1... Nf6 {[%clk 0:02:58.4]} 2. Bg5 {[%clk 0:03:00.9]}
2... d5 {[%clk 0:02:56.1]} 3. Nd2 {[%clk 0:02:58.9]} 3... e6 {[%clk 0:02:53]} 4.
e3 {[%clk 0:02:57.9]} 4... Be7 {[%clk 0:02:52.5]} 5. Bd3 {[%clk 0:02:57.4]} 5...
O-O {[%clk 0:02:51.3]} 6. f4 {[%clk 0:02:56.5]} 6... Nbd7 {[%clk 0:02:40]} 7.
Ngf3 {[%clk 0:02:56.2]} 7... c5 {[%clk 0:02:11.4]} 8. c3 {[%clk 0:02:55.8]} 8...
b6 {[%clk 0:02:07.9]} 9. O-O {[%clk 0:02:50.6]} 9... Bb7 {[%clk 0:02:06.6]} 10.
Ne5 {[%clk 0:02:49.1]} 10... Ne4 {[%clk 0:02:03.8]} 11. Bxe7 {[%clk 0:02:43.4]}
11... Qxe7 {[%clk 0:02:01]} 12. Qc2 {[%clk 0:02:32.6]} 12... f5 {[%clk
0:01:59.9]} 13. Ndf3 {[%clk 0:02:26.6]} 13... Ndf6 {[%clk 0:01:57.6]} 14. a4
{[%clk 0:02:18.9]} 14... a5 {[%clk 0:01:50.1]} 15. Rac1 {[%clk 0:02:11.2]} 15...
Nd6 {[%clk 0:01:13.5]} 16. Rfe1 {[%clk 0:01:59.8]} 16... Ba6 {[%clk 0:01:13.5]}
17. Bxa6 {[%clk 0:01:51.7]} 17... Rxa6 {[%clk 0:01:14.4]} 18. c4 {[%clk
0:01:48.9]} 18... Nde4 {[%clk 0:01:02.6]} 19. cxd5 {[%clk 0:01:41]} 19... Nxd5
{[%clk 0:00:55.3]} 20. dxc5 {[%clk 0:01:33.5]} 20... bxc5 {[%clk 0:00:49.6]} 21.
Nc4 {[%clk 0:01:16.1]} 21... h6 {[%clk 0:00:42.3]} 22. Nfe5 {[%clk 0:01:14.5]}
22... Rb8 {[%clk 0:00:34.7]} 23. Nd3 {[%clk 0:00:58.6]} 23... Qf6 {[%clk
0:00:20.5]} 24. Nce5 {[%clk 0:00:57.5]} 24... Rc8 {[%clk 0:00:18.7]} 25. b3
{[%clk 0:00:55.7]} 25... Ra7 {[%clk 0:00:18.5]} 26. Nb2 {[%clk 0:00:51.8]} 26...
Rb7 {[%clk 0:00:18.7]} 27. Nbc4 {[%clk 0:00:51.6]} 27... Ra7 {[%clk 0:00:19]}
28. Nd2 {[%clk 0:00:47.3]} 28... Qd8 {[%clk 0:00:18.6]} 29. Nxe4 {[%clk
0:00:47.2]} 29... fxe4 {[%clk 0:00:18.5]} 30. Qxe4 {[%clk 0:00:47.5]} 30... Qf6
{[%clk 0:00:17.3]} 31. Qc4 {[%clk 0:00:47.2]} 31... Rac7 {[%clk 0:00:16.4]} 32.
g3 {[%clk 0:00:46.9]} 32... Nb4 {[%clk 0:00:10.5]} 33. Rcd1 {[%clk 0:00:45.7]}
33... Re8 {[%clk 0:00:08.9]} 34. Rd6 {[%clk 0:00:45.4]} 34... Rce7 {[%clk
0:00:08.9]} 35. Qxc5 {[%clk 0:00:42.3]} 35... Qf5 {[%clk 0:00:09.1]} 36. Qc4
{[%clk 0:00:37.9]} 36... Nc2 {[%clk 0:00:08]} 37. e4 {[%clk 0:00:34.4]} 37...
Qxe5 {[%clk 0:00:02.1]} 38. fxe5 {[%clk 0:00:33.2]} 38... Nxe1 {[%clk 0:00:03]}
39. Qe2 {[%clk 0:00:31]} 1-0

[Event "*** Titled Tuesday Blitz"]
[Site "Chess.com"]
[Date "2020.04.07"]
[Round "5"]
[White "Lony7"]
[Black "Gabrielian_Artur"]
[Result "0-1"]
[WhiteElo "2435"]
[BlackElo "2730"]
[TimeControl "180+1"]
[EndTime "13:56:09 PDT"]
[Termination "Gabrielian_Artur won by resignation"]

1. e4 {[%clk 0:03:00.9]} 1... c5 {[%clk 0:02:59.3]} 2. Nf3 {[%clk 0:03:01.4]}
2... d6 {[%clk 0:02:59.6]} 3. Bb5+ {[%clk 0:03:01.9]} 3... Nd7 {[%clk 0:02:59]}
4. Ba4 {[%clk 0:03:01.9]} 4... Nf6 {[%clk 0:02:39.9]} 5. O-O {[%clk 0:03:01.6]}
5... a6 {[%clk 0:02:40.3]} 6. c4 {[%clk 0:03:01]} 6... e6 {[%clk 0:02:34.9]} 7.
Nc3 {[%clk 0:02:59.5]} 7... Be7 {[%clk 0:02:34.3]} 8. d4 {[%clk 0:02:59.4]} 8...
cxd4 {[%clk 0:02:32.3]} 9. Qxd4 {[%clk 0:03:00.1]} 9... O-O {[%clk 0:02:29.6]}
10. Rd1 {[%clk 0:02:57.6]} 10... Qc7 {[%clk 0:02:28.6]} 11. Bxd7 {[%clk
0:02:56]} 11... Bxd7 {[%clk 0:02:23.5]} 12. Bf4 {[%clk 0:02:52.3]} 12... e5
{[%clk 0:01:39.7]} 13. Nxe5 {[%clk 0:02:51.7]} 13... dxe5 {[%clk 0:01:39.9]} 14.
Bxe5 {[%clk 0:02:51.9]} 14... Qa5 {[%clk 0:01:39.9]} 15. Bxf6 {[%clk 0:02:49.9]}
15... Bxf6 {[%clk 0:01:40.1]} 16. Qxd7 {[%clk 0:02:49.7]} 16... Bxc3 {[%clk
0:01:35.7]} 17. bxc3 {[%clk 0:02:48.9]} 17... Qxc3 {[%clk 0:01:28.7]} 18. Qxb7
{[%clk 0:02:46.5]} 18... Qxc4 {[%clk 0:01:28.6]} 19. Qd5 {[%clk 0:02:23.4]}
19... Qa4 {[%clk 0:01:26.4]} 20. Rd4 {[%clk 0:02:08]} 20... Qc2 {[%clk
0:01:25.9]} 21. Rad1 {[%clk 0:02:04.4]} 21... h6 {[%clk 0:01:23.9]} 22. g3
{[%clk 0:02:01]} 22... a5 {[%clk 0:01:22]} 23. a4 {[%clk 0:01:54.3]} 23... Ra6
{[%clk 0:01:09.9]} 24. Rc4 {[%clk 0:01:46.4]} 24... Qe2 {[%clk 0:01:04.2]} 25.
Rd2 {[%clk 0:01:44.6]} 25... Qe1+ {[%clk 0:00:58.8]} 26. Kg2 {[%clk 0:01:44.6]}
26... Rf6 {[%clk 0:00:57.4]} 27. Rc5 {[%clk 0:01:38.2]} 27... Re8 {[%clk
0:00:52.5]} 28. f3 {[%clk 0:01:27.1]} 28... h5 {[%clk 0:00:50.3]} 29. Rxa5
{[%clk 0:01:19.6]} 29... h4 {[%clk 0:00:49.9]} 30. Ra7 {[%clk 0:01:08.3]} 30...
h3+ {[%clk 0:00:27.9]} 31. Kxh3 {[%clk 0:01:03.7]} 31... Qf1+ {[%clk 0:00:27.5]}
32. Kh4 {[%clk 0:00:48.3]} 32... Qxf3 {[%clk 0:00:26.9]} 0-1

[Event "*** Titled Tuesday Blitz"]
[Site "Chess.com"]
[Date "2020.04.07"]
[Round "5"]
[White "Shahinyan_ChessMood"]
[Black "GOGIEFF"]
[Result "0-1"]
[WhiteElo "2675"]
[BlackElo "2947"]
[TimeControl "180+1"]
[EndTime "13:56:11 PDT"]
[Termination "GOGIEFF won by resignation"]

1. e4 {[%clk 0:03:00.9]} 1... c5 {[%clk 0:02:59]} 2. Nc3 {[%clk 0:03:00.3]} 2...
Nc6 {[%clk 0:02:58.5]} 3. g3 {[%clk 0:03:01.2]} 3... g6 {[%clk 0:02:57.1]} 4.
Bg2 {[%clk 0:03:02.1]} 4... Bg7 {[%clk 0:02:57.7]} 5. d3 {[%clk 0:03:03]} 5...
Rb8 {[%clk 0:02:58.1]} 6. Be3 {[%clk 0:03:03.9]} 6... d6 {[%clk 0:02:57.3]} 7.
Qd2 {[%clk 0:03:04.2]} 7... b5 {[%clk 0:02:56.5]} 8. Nge2 {[%clk 0:03:04.5]}
8... b4 {[%clk 0:02:53]} 9. Nd1 {[%clk 0:03:04.8]} 9... e6 {[%clk 0:02:53.3]}
10. O-O {[%clk 0:03:03.8]} 10... Nge7 {[%clk 0:02:52.7]} 11. Bh6 {[%clk
0:03:03.5]} 11... O-O {[%clk 0:02:51]} 12. Bxg7 {[%clk 0:03:03.8]} 12... Kxg7
{[%clk 0:02:51.9]} 13. Ne3 {[%clk 0:03:04.5]} 13... a5 {[%clk 0:02:38.7]} 14. f4
{[%clk 0:02:38]} 14... f5 {[%clk 0:02:35.2]} 15. exf5 {[%clk 0:02:35.9]} 15...
gxf5 {[%clk 0:02:26.2]} 16. Rae1 {[%clk 0:02:27.9]} 16... d5 {[%clk 0:02:18]}
17. d4 {[%clk 0:02:15.6]} 17... Qb6 {[%clk 0:01:58.9]} 18. dxc5 {[%clk
0:02:09.2]} 18... Qxc5 {[%clk 0:01:58.3]} 19. Kh1 {[%clk 0:02:10.1]} 19... Ba6
{[%clk 0:01:53.4]} 20. Rf2 {[%clk 0:01:31.2]} 20... d4 {[%clk 0:01:52.2]} 21.
Nd1 {[%clk 0:01:31.2]} 21... Ng6 {[%clk 0:01:39.4]} 22. Nc1 {[%clk 0:01:20.1]}
22... e5 {[%clk 0:01:32.7]} 23. fxe5 {[%clk 0:01:17.6]} 23... Ncxe5 {[%clk
0:01:30.8]} 24. Nb3 {[%clk 0:01:15.7]} 24... Qc7 {[%clk 0:01:21.4]} 25. Nxd4
{[%clk 0:01:15.1]} 25... Qb6 {[%clk 0:00:55.6]} 26. Nxf5+ {[%clk 0:01:09.1]}
26... Kh8 {[%clk 0:00:55.7]} 27. Qh6 {[%clk 0:00:58.6]} 27... Rf7 {[%clk
0:00:54]} 28. Nde3 {[%clk 0:00:51.7]} 28... Rbf8 {[%clk 0:00:53.7]} 29. Rf4
{[%clk 0:00:29.6]} 29... Bb7 {[%clk 0:00:49.7]} 30. Nd5 {[%clk 0:00:27.5]} 30...
Qc5 {[%clk 0:00:44.8]} 31. Rxe5 {[%clk 0:00:08.1]} 31... Nxe5 {[%clk 0:00:43.9]}
32. Qe6 {[%clk 0:00:07.6]} 32... Ng6 {[%clk 0:00:40]} 33. Rf1 {[%clk 0:00:05.2]}
33... Qxc2 {[%clk 0:00:38.3]} 34. h4 {[%clk 0:00:03.7]} 34... Rxf5 {[%clk
0:00:36.6]} 35. Rxf5 {[%clk 0:00:01.9]} 35... Qxf5 {[%clk 0:00:37.5]} 36. Qxf5
{[%clk 0:00:02.2]} 36... Rxf5 {[%clk 0:00:35]} 37. Ne3 {[%clk 0:00:03.1]} 37...
Bxg2+ {[%clk 0:00:33.2]} 38. Kxg2 {[%clk 0:00:04]} 0-1

[Event "*** Titled Tuesday Blitz"]
[Site "Chess.com"]
[Date "2020.04.07"]
[Round "5"]
[White "AliKa2810"]
[Black "GMHess"]
[Result "1-0"]
[WhiteElo "2615"]
[BlackElo "2756"]
[TimeControl "180+1"]
[EndTime "13:56:13 PDT"]
[Termination "AliKa2810 won by resignation"]

1. d4 {[%clk 0:03:00.9]} 1... g6 {[%clk 0:03:00.6]} 2. e4 {[%clk 0:02:59.4]}
2... Bg7 {[%clk 0:03:01.1]} 3. Nc3 {[%clk 0:02:59.4]} 3... a6 {[%clk 0:02:57.4]}
4. Be3 {[%clk 0:02:58.6]} 4... e6 {[%clk 0:02:58]} 5. Bd3 {[%clk 0:02:50.2]}
5... b5 {[%clk 0:02:57.9]} 6. h4 {[%clk 0:02:42.4]} 6... h6 {[%clk 0:02:57.7]}
7. e5 {[%clk 0:02:38.8]} 7... d6 {[%clk 0:02:50.3]} 8. Nf3 {[%clk 0:02:38.1]}
8... Bb7 {[%clk 0:02:50]} 9. Ne4 {[%clk 0:02:31.7]} 9... Ne7 {[%clk 0:02:44.5]}
10. h5 {[%clk 0:02:30.5]} 10... g5 {[%clk 0:02:42]} 11. Nfxg5 {[%clk 0:02:25.6]}
11... hxg5 {[%clk 0:02:38.4]} 12. Bxg5 {[%clk 0:02:25.7]} 12... dxe5 {[%clk
0:02:33.3]} 13. h6 {[%clk 0:02:22]} 13... Bxe4 {[%clk 0:01:42.1]} 14. Bxe4
{[%clk 0:02:20.4]} 14... c6 {[%clk 0:01:33.9]} 15. Rh3 {[%clk 0:02:17.8]} 15...
Bf8 {[%clk 0:01:23.1]} 16. Qf3 {[%clk 0:01:37.9]} 16... f5 {[%clk 0:00:37.7]}
17. dxe5 {[%clk 0:01:16.2]} 17... Qa5+ {[%clk 0:00:31.9]} 18. Bd2 {[%clk
0:01:13.6]} 18... Qc7 {[%clk 0:00:18.2]} 19. O-O-O {[%clk 0:01:11.6]} 19... Nd7
{[%clk 0:00:12.4]} 20. Qh5+ {[%clk 0:00:33.5]} 20... Kd8 {[%clk 0:00:12.7]} 21.
Bf3 {[%clk 0:00:33.5]} 21... Nd5 {[%clk 0:00:10.6]} 22. Bxd5 {[%clk 0:00:26.8]}
22... cxd5 {[%clk 0:00:11.5]} 23. Qf7 {[%clk 0:00:26.2]} 23... Qc6 {[%clk
0:00:08.8]} 24. Rc3 {[%clk 0:00:24]} 24... Bc5 {[%clk 0:00:08.7]} 25. b4 {[%clk
0:00:20.8]} 25... Kc7 {[%clk 0:00:06.6]} 26. Be3 {[%clk 0:00:18.7]} 26... Kb7
{[%clk 0:00:06.6]} 27. Rxc5 {[%clk 0:00:17.2]} 27... Raf8 {[%clk 0:00:06.5]} 28.
Qg7 {[%clk 0:00:13.5]} 28... Qxc5 {[%clk 0:00:03.2]} 29. Bxc5 {[%clk 0:00:13]}
29... Kc6 {[%clk 0:00:03.9]} 30. Bxf8 {[%clk 0:00:12.4]} 30... Rxf8 {[%clk
0:00:04.1]} 31. h7 {[%clk 0:00:12.7]} 31... Rc8 {[%clk 0:00:04.1]} 32. h8=Q
{[%clk 0:00:12.8]} 32... Rxh8 {[%clk 0:00:05]} 33. Qxh8 {[%clk 0:00:13.3]} 33...
Nb6 {[%clk 0:00:05.9]} 34. Qe8+ {[%clk 0:00:13.2]} 1-0

[Event "*** Titled Tuesday Blitz"]
[Site "Chess.com"]
[Date "2020.04.07"]
[Round "5"]
[White "platy3"]
[Black "serhanberat_ozdemir"]
[Result "1-0"]
[WhiteElo "2795"]
[BlackElo "2467"]
[TimeControl "180+1"]
[EndTime "13:56:13 PDT"]
[Termination "platy3 won by resignation"]

1. c4 {[%clk 0:03:00.9]} 1... Nf6 {[%clk 0:02:56.5]} 2. Nf3 {[%clk 0:02:59.9]}
2... g6 {[%clk 0:02:56.5]} 3. Nc3 {[%clk 0:02:57.9]} 3... Bg7 {[%clk 0:02:54]}
4. e4 {[%clk 0:02:55.3]} 4... d6 {[%clk 0:02:53.3]} 5. d4 {[%clk 0:02:54.2]}
5... O-O {[%clk 0:02:51.2]} 6. h3 {[%clk 0:02:54.8]} 6... c5 {[%clk 0:02:49.7]}
7. d5 {[%clk 0:02:54.6]} 7... e6 {[%clk 0:02:50]} 8. Bd3 {[%clk 0:02:53.3]} 8...
exd5 {[%clk 0:02:49]} 9. exd5 {[%clk 0:02:54.2]} 9... Nbd7 {[%clk 0:02:37]} 10.
O-O {[%clk 0:02:52.4]} 10... h6 {[%clk 0:02:32.7]} 11. Bf4 {[%clk 0:02:42.4]}
11... Ne8 {[%clk 0:02:30.3]} 12. Qd2 {[%clk 0:02:41.6]} 12... Kh7 {[%clk
0:02:28.7]} 13. Rfe1 {[%clk 0:02:41]} 13... f5 {[%clk 0:02:25.1]} 14. Bh2 {[%clk
0:02:28.6]} 14... a6 {[%clk 0:02:22.2]} 15. Re2 {[%clk 0:02:28.7]} 15... Rb8
{[%clk 0:01:37.7]} 16. Rae1 {[%clk 0:02:23]} 16... Ndf6 {[%clk 0:01:35.8]} 17.
Re7 {[%clk 0:02:19.8]} 17... Kg8 {[%clk 0:01:09.4]} 18. Bf4 {[%clk 0:02:08.5]}
18... g5 {[%clk 0:01:04.6]} 19. Nxg5 {[%clk 0:02:06.9]} 19... h5 {[%clk
0:00:58.5]} 20. R7e2 {[%clk 0:02:02]} 20... b5 {[%clk 0:00:25.4]} 21. Ne6 {[%clk
0:01:59.3]} 21... Bxe6 {[%clk 0:00:23.3]} 22. dxe6 {[%clk 0:02:00.2]} 22... Ne4
{[%clk 0:00:20.5]} 23. Bxe4 {[%clk 0:01:57.9]} 23... fxe4 {[%clk 0:00:21.4]} 24.
Rxe4 {[%clk 0:01:57.7]} 24... Bxc3 {[%clk 0:00:18.2]} 25. Qxc3 {[%clk
0:01:57.3]} 25... Qf6 {[%clk 0:00:17.4]} 26. Qxf6 {[%clk 0:01:55.3]} 26... Rxf6
{[%clk 0:00:16.2]} 27. cxb5 {[%clk 0:01:54.7]} 27... Rxb5 {[%clk 0:00:14.8]} 28.
b3 {[%clk 0:01:55.3]} 28... d5 {[%clk 0:00:12.2]} 29. Ra4 {[%clk 0:01:54]} 29...
c4 {[%clk 0:00:10.6]} 30. Bg5 {[%clk 0:01:53.8]} 30... Rg6 {[%clk 0:00:08.7]}
31. h4 {[%clk 0:01:54.3]} 31... Rb6 {[%clk 0:00:06.8]} 32. bxc4 {[%clk
0:01:53.9]} 32... Rgxe6 {[%clk 0:00:06.5]} 33. Rxe6 {[%clk 0:01:53]} 33... Rxe6
{[%clk 0:00:07.4]} 34. cxd5 {[%clk 0:01:53.7]} 34... Re1+ {[%clk 0:00:07.9]} 35.
Kh2 {[%clk 0:01:54.3]} 35... Rd1 {[%clk 0:00:08.4]} 36. Rxa6 {[%clk 0:01:53.5]}
36... Rxd5 {[%clk 0:00:09.1]} 37. Rh6 {[%clk 0:01:53.4]} 37... Ng7 {[%clk
0:00:09.3]} 38. Bf6 {[%clk 0:01:53.7]} 38... Kf7 {[%clk 0:00:09.8]} 39. Bxg7
{[%clk 0:01:53.5]} 39... Kxg7 {[%clk 0:00:10.7]} 40. Ra6 {[%clk 0:01:53.4]}
40... Rd2 {[%clk 0:00:11]} 41. f3 {[%clk 0:01:53.8]} 41... Rd3 {[%clk
0:00:11.7]} 42. a4 {[%clk 0:01:54.3]} 42... Rd4 {[%clk 0:00:12.6]} 43. a5 {[%clk
0:01:54.7]} 43... Rxh4+ {[%clk 0:00:13]} 44. Kg3 {[%clk 0:01:55.3]} 44... Rb4
{[%clk 0:00:13.9]} 45. Kh3 {[%clk 0:01:55.9]} 45... Kh7 {[%clk 0:00:14.1]} 46.
g3 {[%clk 0:01:56.5]} 46... Kg7 {[%clk 0:00:13.5]} 47. f4 {[%clk 0:01:57]} 47...
Rb1 {[%clk 0:00:14]} 48. Kh4 {[%clk 0:01:57.3]} 48... Rh1+ {[%clk 0:00:14.5]}
49. Kg5 {[%clk 0:01:57.7]} 49... Rg1 {[%clk 0:00:14.9]} 50. Ra7+ {[%clk
0:01:57.8]} 50... Kg8 {[%clk 0:00:13.5]} 51. a6 {[%clk 0:01:49.4]} 51... Rxg3+
{[%clk 0:00:12.6]} 52. Kxh5 {[%clk 0:01:50.1]} 52... Ra3 {[%clk 0:00:11.1]} 53.
Kg5 {[%clk 0:01:50.6]} 53... Ra4 {[%clk 0:00:08.8]} 54. Kf5 {[%clk 0:01:49.7]}
54... Ra5+ {[%clk 0:00:08.2]} 55. Ke6 {[%clk 0:01:50.3]} 55... Ra4 {[%clk
0:00:08.2]} 56. f5 {[%clk 0:01:50.9]} 56... Re4+ {[%clk 0:00:06.1]} 57. Kd5
{[%clk 0:01:51.1]} 57... Ra4 {[%clk 0:00:07]} 58. Kc5 {[%clk 0:01:51.6]} 58...
Ra5+ {[%clk 0:00:07.2]} 59. Kb6 {[%clk 0:01:52.2]} 59... Rxf5 {[%clk 0:00:08.1]}
60. Rc7 {[%clk 0:01:52.4]} 60... Rf6+ {[%clk 0:00:08.2]} 61. Rc6 {[%clk
0:01:52.8]} 61... Rf1 {[%clk 0:00:05.9]} 62. a7 {[%clk 0:01:52.9]} 62... Rb1+
{[%clk 0:00:06.8]} 63. Kc7 {[%clk 0:01:53.1]} 63... Ra1 {[%clk 0:00:06.8]} 64.
Kb7 {[%clk 0:01:53.6]} 64... Rb1+ {[%clk 0:00:04.6]} 65. Rb6 {[%clk 0:01:53.7]}
65... Ra1 {[%clk 0:00:05.5]} 66. a8=Q+ {[%clk 0:01:54]} 66... Rxa8 {[%clk
0:00:06.4]} 67. Kxa8 {[%clk 0:01:54.9]} 1-0

[Event "*** Titled Tuesday Blitz"]
[Site "Chess.com"]
[Date "2020.04.07"]
[Round "5"]
[White "GHANDEEVAM2003"]
[Black "Nikolakis2014"]
[Result "1-0"]
[WhiteElo "2972"]
[BlackElo "2701"]
[TimeControl "180+1"]
[EndTime "13:56:14 PDT"]
[Termination "GHANDEEVAM2003 won by resignation"]

1. e4 {[%clk 0:03:00.9]} 1... c5 {[%clk 0:02:57.1]} 2. Nf3 {[%clk 0:03:01.2]}
2... Nc6 {[%clk 0:02:55.9]} 3. d4 {[%clk 0:03:01.4]} 3... cxd4 {[%clk
0:02:55.2]} 4. Nxd4 {[%clk 0:03:02.3]} 4... e5 {[%clk 0:02:55.2]} 5. Nb5 {[%clk
0:03:01.3]} 5... d6 {[%clk 0:02:55.3]} 6. c4 {[%clk 0:03:01.4]} 6... Be7 {[%clk
0:02:52.4]} 7. N1c3 {[%clk 0:02:58.7]} 7... a6 {[%clk 0:02:52.4]} 8. Na3 {[%clk
0:02:58.9]} 8... f5 {[%clk 0:02:52.4]} 9. exf5 {[%clk 0:02:50.8]} 9... Bxf5
{[%clk 0:02:51.5]} 10. Bd3 {[%clk 0:02:51.3]} 10... Be6 {[%clk 0:02:51.2]} 11.
O-O {[%clk 0:02:47.7]} 11... Nf6 {[%clk 0:02:50.8]} 12. Nc2 {[%clk 0:02:47.1]}
12... O-O {[%clk 0:02:50.7]} 13. Bg5 {[%clk 0:02:46.2]} 13... Qd7 {[%clk
0:02:47.7]} 14. Ne3 {[%clk 0:02:44.7]} 14... Rae8 {[%clk 0:02:46]} 15. Qd2
{[%clk 0:02:36.8]} 15... Bd8 {[%clk 0:02:43.3]} 16. Rad1 {[%clk 0:02:32.4]}
16... Kh8 {[%clk 0:02:32.4]} 17. Kh1 {[%clk 0:02:27.4]} 17... Nd4 {[%clk
0:02:25.2]} 18. b3 {[%clk 0:02:24.3]} 18... Ba5 {[%clk 0:02:13.6]} 19. Qb2
{[%clk 0:02:16.2]} 19... Bb6 {[%clk 0:02:09.6]} 20. Bxf6 {[%clk 0:02:09.8]}
20... gxf6 {[%clk 0:02:08.3]} 21. Ncd5 {[%clk 0:02:07]} 21... Ba7 {[%clk
0:02:07.6]} 22. f4 {[%clk 0:02:05]} 22... f5 {[%clk 0:01:51.2]} 23. g3 {[%clk
0:01:58.8]} 23... Qg7 {[%clk 0:01:49.4]} 24. Qg2 {[%clk 0:01:56.3]} 24... b5
{[%clk 0:01:48]} 25. cxb5 {[%clk 0:01:47.9]} 25... axb5 {[%clk 0:01:47]} 26. a4
{[%clk 0:01:47.5]} 26... bxa4 {[%clk 0:01:45.9]} 27. bxa4 {[%clk 0:01:48.4]}
27... Bc5 {[%clk 0:01:46]} 28. a5 {[%clk 0:01:45.1]} 28... Rb8 {[%clk
0:01:42.2]} 29. a6 {[%clk 0:01:41.5]} 29... Rb3 {[%clk 0:01:37]} 30. Bc4 {[%clk
0:01:40.1]} 30... Ra3 {[%clk 0:01:36.2]} 31. Ra1 {[%clk 0:01:38.8]} 31... Rxa1
{[%clk 0:00:42.7]} 32. Rxa1 {[%clk 0:01:39.7]} 32... exf4 {[%clk 0:00:42.8]} 33.
gxf4 {[%clk 0:01:23.6]} 33... Qa7 {[%clk 0:00:30.9]} 34. Nc3 {[%clk 0:01:09.4]}
34... Rg8 {[%clk 0:00:27.6]} 35. Qb7 {[%clk 0:01:07.3]} 35... Bxc4 {[%clk
0:00:17.5]} 36. Nxc4 {[%clk 0:01:06.9]} 36... Ne6 {[%clk 0:00:16.3]} 37. Nd5
{[%clk 0:00:59.1]} 37... Qa8 {[%clk 0:00:13.6]} 38. Ne7 {[%clk 0:00:46.9]} 38...
Bd4 {[%clk 0:00:08.4]} 39. Nxg8 {[%clk 0:00:32.7]} 39... Qxg8 {[%clk 0:00:07.9]}
40. Rf1 {[%clk 0:00:32.9]} 40... Nxf4 {[%clk 0:00:07.6]} 41. a7 {[%clk
0:00:30.6]} 41... d5 {[%clk 0:00:07.8]} 42. a8=Q {[%clk 0:00:30.5]} 1-0

[Event "*** Titled Tuesday Blitz"]
[Site "Chess.com"]
[Date "2020.04.07"]
[Round "5"]
[White "stoleriu"]
[Black "2L8IWUN"]
[Result "0-1"]
[WhiteElo "2538"]
[BlackElo "2371"]
[TimeControl "180+1"]
[EndTime "13:56:14 PDT"]
[Termination "2L8IWUN won by resignation"]

1. e4 {[%clk 0:03:00.5]} 1... c5 {[%clk 0:02:59.7]} 2. Nc3 {[%clk 0:02:57.5]}
2... Nc6 {[%clk 0:02:59.1]} 3. Bb5 {[%clk 0:02:56.8]} 3... Nd4 {[%clk
0:02:58.5]} 4. Bc4 {[%clk 0:02:56.1]} 4... e6 {[%clk 0:02:50.3]} 5. Nge2 {[%clk
0:02:55.7]} 5... b5 {[%clk 0:02:47.3]} 6. Nxb5 {[%clk 0:02:49.9]} 6... Nxb5
{[%clk 0:02:38.6]} 7. Bxb5 {[%clk 0:02:50.8]} 7... Nf6 {[%clk 0:02:13.7]} 8. Nc3
{[%clk 0:02:39.9]} 8... Bb7 {[%clk 0:02:12.5]} 9. d3 {[%clk 0:02:33.9]} 9... a6
{[%clk 0:02:09]} 10. Ba4 {[%clk 0:02:32.6]} 10... Be7 {[%clk 0:02:06.4]} 11. O-O
{[%clk 0:02:31.5]} 11... O-O {[%clk 0:02:03.9]} 12. Re1 {[%clk 0:02:30.1]} 12...
d5 {[%clk 0:02:01.4]} 13. Bg5 {[%clk 0:02:12.3]} 13... dxe4 {[%clk 0:01:49.8]}
14. dxe4 {[%clk 0:02:13.2]} 14... Qc7 {[%clk 0:01:37.7]} 15. Qf3 {[%clk
0:01:53.8]} 15... Nxe4 {[%clk 0:01:30.9]} 16. Bxe7 {[%clk 0:01:14.5]} 16... Nxc3
{[%clk 0:01:30]} 17. Qxc3 {[%clk 0:01:12.7]} 17... Qxe7 {[%clk 0:01:29]} 18.
Rad1 {[%clk 0:01:09.6]} 18... Rfd8 {[%clk 0:01:23.1]} 19. f3 {[%clk 0:01:06.9]}
19... Rxd1 {[%clk 0:01:19]} 20. Rxd1 {[%clk 0:01:07.8]} 20... Bd5 {[%clk
0:01:04.2]} 21. Qe3 {[%clk 0:00:59.7]} 21... Rd8 {[%clk 0:00:48]} 22. h3 {[%clk
0:00:46.1]} 22... h6 {[%clk 0:00:45.9]} 23. b3 {[%clk 0:00:44.9]} 23... c4
{[%clk 0:00:43.9]} 24. Qd2 {[%clk 0:00:34.6]} 24... Rc8 {[%clk 0:00:36.4]} 25.
Kh1 {[%clk 0:00:29.6]} 25... Qc5 {[%clk 0:00:30.6]} 26. Qf4 {[%clk 0:00:19.9]}
26... cxb3 {[%clk 0:00:27.5]} 27. cxb3 {[%clk 0:00:20.8]} 27... Qf2 {[%clk
0:00:23.2]} 28. Qd2 {[%clk 0:00:17.5]} 28... Rc2 {[%clk 0:00:20]} 29. Qxf2
{[%clk 0:00:16.4]} 29... Rxf2 {[%clk 0:00:20.9]} 30. a3 {[%clk 0:00:14.1]} 30...
Rxf3 {[%clk 0:00:18.9]} 31. Rc1 {[%clk 0:00:07]} 31... Rxh3+ {[%clk 0:00:17]}
32. Kg1 {[%clk 0:00:06.5]} 32... Rg3 {[%clk 0:00:17.6]} 33. Rc2 {[%clk
0:00:05.4]} 33... Bxb3 {[%clk 0:00:14.6]} 0-1